fUST/lending_fUST_20260529
["ID","MTS","AMOUNT","RATE_DAILY","PERIOD"]
[423309091,1780048247000,-421.05,0.00011506,2]
[423309077,1780048247000,-247.34569309,0.000115,2]
[423309093,1780048247000,-500.0,0.00011506,2]
[423309099,1780048247000,-1101.92,0.00011506,2]
[423309098,1780048247000,-657.44,0.00011506,2]
[423309097,1780048247000,-588.07,0.00011506,2]
[423309101,1780048247000,-604.29,0.00011506,2]
[423309102,1780048247000,-515.67,0.00011506,2]
[423309107,1780048247000,-168.63677832,0.00011506,2]
[423309104,1780048247000,-500.0,0.00011506,2]
[423309073,1780048247000,-151.0,0.000114,2]
[423309108,1780048247000,-500.0,0.00011506,2]
[423309095,1780048247000,-623.91,0.00011506,2]
[423309075,1780048247000,-151.0,0.000114,2]
[423309056,1780048247000,-1058.0,0.00011282,4]
[423309066,1780048247000,-151.0,0.000114,2]
[423309110,1780048247000,-500.0,0.00011506,2]
[423309024,1780048247000,-2133.77,0.00011232,2]
[423309037,1780048247000,-500.0,0.00011232,2]
[423309033,1780048247000,-519.76,0.00011232,2]
[423309035,1780048247000,-7508.39,0.00011232,2]
[423309039,1780048247000,-388.76,0.00011232,2]
[423309041,1780048247000,-1784.66,0.00011232,2]
[423309051,1780048247000,-954.48,0.00011232,2]
[423309055,1780048247000,-506.81,0.00011232,2]
[423309053,1780048247000,-500.0,0.00011232,2]
[423309043,1780048247000,-500.0,0.00011232,2]
[423309045,1780048247000,-500.0,0.00011232,2]
[423309049,1780048247000,-831.06,0.00011232,2]
[423309047,1780048247000,-508.46,0.00011232,2]
[423309059,1780048247000,-247.34569309,0.000113,2]
[423309070,1780048247000,-151.0,0.000114,2]
[423309064,1780048247000,-246.18691535,0.000113,2]
[423309061,1780048247000,-655.8605738,0.000113,2]
[423309068,1780048247000,-151.0,0.000114,2]
[423309071,1780048247000,-151.0,0.000114,2]
[423309113,1780048247000,-2356.06,0.00011506,2]
[423309129,1780048247000,-500.0,0.00011506,2]
[423309114,1780048247000,-1562.73,0.00011506,2]
[423309164,1780048247000,-657.44,0.0001178,2]
[423309160,1780048247000,-623.91,0.0001178,2]
[423309166,1780048247000,-1101.92,0.0001178,2]
[423309173,1780048247000,-500.0,0.0001178,2]
[423309170,1780048247000,-515.67,0.0001178,2]
[423309172,1780048247000,-500.0,0.0001178,2]
[423309177,1780048247000,-2356.06,0.0001178,2]
[423309175,1780048247000,-500.0,0.0001178,2]
[423309162,1780048247000,-588.07,0.0001178,2]
[423309181,1780048247000,-1764.73,0.0001178,2]
[423309183,1780048247000,-2133.77,0.0001178,2]
[423309185,1780048247000,-519.76,0.0001178,2]
[423309187,1780048247000,-7508.39,0.0001178,2]
[423309193,1780048247000,-500.0,0.0001178,2]
[423309191,1780048247000,-1784.66,0.0001178,2]
[423309120,1780048247000,-519.76,0.00011506,2]
[423309197,1780048247000,-508.46,0.0001178,2]
[423309195,1780048247000,-500.0,0.0001178,2]
[423309179,1780048247000,-1562.73,0.0001178,2]
[423309168,1780048247000,-604.29,0.0001178,2]
[423309189,1780048247000,-500.0,0.0001178,2]
[423309156,1780048247000,-1126.9,0.0001178,2]
[423309158,1780048247000,-500.0,0.0001178,2]
[423309124,1780048247000,-500.0,0.00011506,2]
[423309122,1780048247000,-7508.39,0.00011506,2]
[423309116,1780048247000,-1764.73,0.00011506,2]
[423309118,1780048247000,-2133.77,0.00011506,2]
[423309126,1780048247000,-1784.66,0.00011506,2]
[423309139,1780048247000,-506.81,0.00011506,2]
[423309144,1780048247000,-151.0,0.000116,2]
[423309141,1780048247000,-151.0,0.000116,2]
[423309127,1780048247000,-500.0,0.00011506,2]
[423309146,1780048247000,-151.0,0.000116,2]
[423309131,1780048247000,-508.46,0.00011506,2]
[423309152,1780048247000,-727.96,0.0001178,2]
[423309148,1780048247000,-151.0,0.000116,2]
[423309154,1780048247000,-663.35,0.0001178,2]
[423309133,1780048247000,-831.06,0.00011506,2]
[423309143,1780048247000,-151.0,0.000116,2]
[423309135,1780048247000,-954.48,0.00011506,2]
[423309137,1780048247000,-500.0,0.00011506,2]
[423309150,1780048247000,-230.03419048,0.00011645,2]
[423309241,1780048248000,-500.0,0.00012054,2]
[423309252,1780048248000,-515.67,0.00012054,2]
[423309243,1780048248000,-623.91,0.00012054,2]
[423309245,1780048248000,-588.07,0.00012054,2]
[423309250,1780048248000,-604.29,0.00012054,2]
[423309246,1780048248000,-657.44,0.00012054,2]
[423309248,1780048248000,-1101.92,0.00012054,2]
[423309257,1780048248000,-500.0,0.00012054,2]
[423309263,1780048248000,-1764.73,0.00012054,2]
[423309254,1780048248000,-500.0,0.00012054,2]
[423309261,1780048248000,-1562.73,0.00012054,2]
[423309255,1780048248000,-500.0,0.00012054,2]
[423309259,1780048248000,-2356.06,0.00012054,2]
[423309266,1780048248000,-519.76,0.00012054,2]
[423309237,1780048248000,-663.35,0.00012054,2]
[423309265,1780048248000,-2133.77,0.00012054,2]
[423309239,1780048248000,-1126.9,0.00012054,2]
[423309220,1780048248000,-152.69,0.00012,2]
[423309229,1780048248000,-151.0,0.00012,2]
[423309205,1780048248000,-506.81,0.0001178,2]
[423309199,1780048248000,-831.06,0.0001178,2]
[423309201,1780048248000,-954.48,0.0001178,2]
[423309203,1780048248000,-500.0,0.0001178,2]
[423309207,1780048248000,-151.0,0.000118,2]
[423309278,1780048248000,-831.06,0.00012054,2]
[423309216,1780048248000,-151.0,0.000118,2]
[423309231,1780048248000,-151.0,0.00012,2]
[423309218,1780048248000,-932.36006825,0.000119,2]
[423309209,1780048248000,-151.0,0.000118,2]
[423309213,1780048248000,-151.0,0.000118,2]
[423309211,1780048248000,-151.0,0.000118,2]
[423309215,1780048248000,-151.0,0.000118,2]
[423309235,1780048248000,-727.96,0.00012054,2]
[423309224,1780048248000,-151.0,0.00012,2]
[423309233,1780048248000,-151.0,0.00012,2]
[423309222,1780048248000,-151.0,0.00012,2]
[423309280,1780048248000,-954.48,0.00012054,2]
[423309335,1780048248000,-2133.77,0.00012328,2]
[423309270,1780048248000,-500.0,0.00012054,2]
[423309307,1780048248000,-1126.9,0.00012328,2]
[423309311,1780048248000,-623.91,0.00012328,2]
[423309317,1780048248000,-1101.92,0.00012328,2]
[423309319,1780048248000,-604.29,0.00012328,2]
[423309331,1780048248000,-1562.73,0.00012328,2]
[423309322,1780048248000,-515.67,0.00012328,2]
[423309324,1780048248000,-500.0,0.00012328,2]
[423309329,1780048248000,-2356.06,0.00012328,2]
[423309325,1780048248000,-500.0,0.00012328,2]
[423309327,1780048248000,-500.0,0.00012328,2]
[423309337,1780048248000,-519.76,0.00012328,2]
[423309342,1780048248000,-604.9,0.00012328,2]
[423309340,1780048248000,-7508.39,0.00012328,2]
[423309346,1780048248000,-1784.66,0.00012328,2]
[423309273,1780048248000,-500.0,0.00012054,2]
[423309309,1780048248000,-500.0,0.00012328,2]
[423309315,1780048248000,-657.44,0.00012328,2]
[423309333,1780048248000,-1764.73,0.00012328,2]
[423309303,1780048248000,-727.96,0.00012328,2]
[423309314,1780048248000,-588.07,0.00012328,2]
[423309268,1780048248000,-7508.39,0.00012054,2]
[423309271,1780048248000,-1784.66,0.00012054,2]
[423309281,1780048248000,-500.0,0.00012054,2]
[423309276,1780048248000,-508.46,0.00012054,2]
[423309295,1780048248000,-151.0,0.000122,2]
[423309300,1780048248000,-1000.0,0.00012273,2]
[423309285,1780048248000,-151.0,0.000122,2]
[423309275,1780048248000,-500.0,0.00012054,2]
[423309283,1780048248000,-506.81,0.00012054,2]
[423309293,1780048248000,-151.0,0.000122,2]
[423309297,1780048248000,-500.0,0.00012257,2]
[423309301,1780048248000,-244.0,0.00012273,2]
[423309289,1780048248000,-151.0,0.000122,2]
[423309291,1780048248000,-151.0,0.000122,2]
[423309287,1780048248000,-151.0,0.000122,2]
[423309305,1780048248000,-663.35,0.00012328,2]
[423309386,1780048249000,-393.967,0.00012455,2]
[423309384,1780048249000,-1835.0,0.00012455,2]
[423309393,1780048249000,-185.0,0.00012455,2]
[423309389,1780048249000,-443.0,0.00012455,2]
[423309391,1780048249000,-3629.0,0.00012455,2]
[423309400,1780048249000,-219.095693,0.00012583,2]
[423309397,1780048249000,-196.302383,0.00012521,2]
[423309408,1780048249000,-151.0,0.000126,2]
[423309377,1780048249000,-151.0,0.000124,2]
[423309404,1780048249000,-151.0,0.000126,2]
[423309395,1780048249000,-174.681991,0.00012521,2]
[423309379,1780048249000,-1414.0,0.00012455,2]
[423309364,1780048249000,-506.81,0.00012328,2]
[423309373,1780048249000,-151.0,0.000124,2]
[423309371,1780048249000,-151.0,0.000124,2]
[423309382,1780048249000,-2205.0,0.00012455,2]
[423309360,1780048249000,-954.48,0.00012328,2]
[423309367,1780048249000,-1058.0,0.00012375,4]
[423309369,1780048249000,-151.0,0.000124,2]
[423309362,1780048249000,-500.0,0.00012328,2]
[423309351,1780048249000,-500.0,0.00012328,2]
[423309357,1780048249000,-831.06,0.00012328,2]
[423309355,1780048249000,-508.46,0.00012328,2]
[423309348,1780048249000,-185.37,0.00012328,2]
[423309402,1780048249000,-151.0,0.000126,2]
[423309375,1780048249000,-151.0,0.000124,2]
[423309411,1780048249000,-151.0,0.000126,2]
[423309406,1780048249000,-151.0,0.000126,2]
[423309463,1780048249000,-508.46,0.00012602,2]
[423309413,1780048249000,-151.0,0.000126,2]
[423309471,1780048249000,-151.0,0.000128,2]
[423309466,1780048249000,-954.48,0.00012602,2]
[423309465,1780048249000,-831.06,0.00012602,2]
[423309468,1780048249000,-500.0,0.00012602,2]
[423309457,1780048249000,-7508.39,0.00012602,2]
[423309461,1780048249000,-500.0,0.00012602,2]
[423309454,1780048249000,-519.76,0.00012602,2]
[423309452,1780048249000,-2133.77,0.00012602,2]
[423309459,1780048249000,-1784.66,0.00012602,2]
[423309450,1780048249000,-1764.73,0.00012602,2]
[423309448,1780048249000,-1562.73,0.00012602,2]
[423309441,1780048249000,-500.0,0.00012602,2]
[423309470,1780048249000,-506.81,0.00012602,2]
[423309445,1780048249000,-500.0,0.00012602,2]
[423309422,1780048249000,-727.96,0.00012602,2]
[423309443,1780048249000,-500.0,0.00012602,2]
[423309424,1780048249000,-663.35,0.00012602,2]
[423309426,1780048249000,-1126.9,0.00012602,2]
[423309433,1780048249000,-657.44,0.00012602,2]
[423309430,1780048249000,-623.91,0.00012602,2]
[423309431,1780048249000,-588.07,0.00012602,2]
[423309446,1780048249000,-2356.06,0.00012602,2]
[423309435,1780048249000,-1101.92,0.00012602,2]
[423309437,1780048249000,-604.29,0.00012602,2]
[423309439,1780048249000,-515.67,0.00012602,2]
[423309428,1780048249000,-500.0,0.00012602,2]
[423309514,1780048250000,-519.76,0.00012876,2]
[423309530,1780048250000,-506.81,0.00012876,2]
[423309524,1780048250000,-831.06,0.00012876,2]
[423309526,1780048250000,-954.48,0.00012876,2]
[423309516,1780048250000,-7508.39,0.00012876,2]
[423309513,1780048250000,-2133.77,0.00012876,2]
[423309528,1780048250000,-619.46399044,0.00012876,2]
[423309518,1780048250000,-1784.66,0.00012876,2]
[423309537,1780048250000,-663.35,0.0001315,2]
[423309522,1780048250000,-508.46,0.00012876,2]
[423309531,1780048250000,-152.69,0.000129,2]
[423309532,1780048250000,-473.02214708,0.00012952,2]
[423309534,1780048250000,-390308.2099366,0.00012972,2]
[423309533,1780048250000,-2897.39837633,0.0001297,2]
[423309536,1780048250000,-727.96,0.0001315,2]
[423309507,1780048250000,-2356.06,0.00012876,2]
[423309520,1780048250000,-346.5372115,0.00012876,2]
[423309535,1780048250000,-151.0,0.00013,2]
[423309483,1780048250000,-727.96,0.00012876,2]
[423309509,1780048250000,-1562.73,0.00012876,2]
[423309473,1780048250000,-151.0,0.000128,2]
[423309475,1780048250000,-151.0,0.000128,2]
[423309478,1780048250000,-151.0,0.000128,2]
[423309479,1780048250000,-151.0,0.000128,2]
[423309482,1780048250000,-500.0,0.0001287,2]
[423309485,1780048250000,-663.35,0.00012876,2]
[423309498,1780048250000,-1101.92,0.00012876,2]
[423309489,1780048250000,-500.0,0.00012876,2]
[423309487,1780048250000,-1126.9,0.00012876,2]
[423309492,1780048250000,-623.91,0.00012876,2]
[423309494,1780048250000,-588.07,0.00012876,2]
[423309496,1780048250000,-657.44,0.00012876,2]
[423309501,1780048250000,-515.67,0.00012876,2]
[423309499,1780048250000,-604.29,0.00012876,2]
[423309511,1780048250000,-1764.73,0.00012876,2]
[423309504,1780048250000,-500.0,0.00012876,2]
[423309506,1780048250000,-500.0,0.00012876,2]
[423309503,1780048250000,-513.49999454,0.00012876,2]
[423309538,1780048250000,-1126.9,0.0001315,2]
[423309559,1780048250000,-506.81,0.0001315,2]
[423309541,1780048250000,-588.07,0.0001315,2]
[423309565,1780048250000,-663.35,0.00013424,2]
[423309563,1780048250000,-151.0,0.000134,2]
[423309562,1780048250000,-265.037,0.0001331,2]
[423309566,1780048250000,-1126.9,0.00013424,2]
[423309567,1780048250000,-500.0,0.00013424,2]
[423309568,1780048250000,-623.91,0.00013424,2]
[423309569,1780048250000,-588.07,0.00013424,2]
[423309570,1780048250000,-657.44,0.00013424,2]
[423309571,1780048250000,-1101.92,0.00013424,2]
[423309572,1780048250000,-604.29,0.00013424,2]
[423309573,1780048250000,-515.67,0.00013424,2]
[423309575,1780048250000,-2356.06,0.00013424,2]
[423309576,1780048250000,-1562.73,0.00013424,2]
[423309577,1780048250000,-1764.73,0.00013424,2]
[423309579,1780048250000,-519.76,0.00013424,2]
[423309578,1780048250000,-2133.77,0.00013424,2]
[423309540,1780048250000,-623.91,0.0001315,2]
[423309564,1780048250000,-727.96,0.00013424,2]
[423309561,1780048250000,-284.831095,0.00013156,2]
[423309574,1780048250000,-500.0,0.00013424,2]
[423309557,1780048250000,-831.06,0.0001315,2]
[423309539,1780048250000,-500.0,0.0001315,2]
[423309560,1780048250000,-162.38389,0.00013156,2]
[423309546,1780048250000,-171.58,0.0001315,2]
[423309545,1780048250000,-515.67,0.0001315,2]
[423309543,1780048250000,-1101.92,0.0001315,2]
[423309542,1780048250000,-657.44,0.0001315,2]
[423309544,1780048250000,-604.29,0.0001315,2]
[423309548,1780048250000,-2356.06,0.0001315,2]
[423309547,1780048250000,-500.0,0.0001315,2]
[423309549,1780048250000,-1562.73,0.0001315,2]
[423309552,1780048250000,-810.32462671,0.0001315,2]
[423309551,1780048250000,-2133.77,0.0001315,2]
[423309553,1780048250000,-519.76,0.0001315,2]
[423309555,1780048250000,-1784.66,0.0001315,2]
[423309556,1780048250000,-508.46,0.0001315,2]
[423309558,1780048250000,-954.48,0.0001315,2]
[423309550,1780048250000,-1764.73,0.0001315,2]
[423309554,1780048250000,-7508.39,0.0001315,2]
[423309619,1780048251000,-1000.0,0.00013699,2]
[423309618,1780048251000,-506.81,0.00013698,2]
[423309614,1780048251000,-1784.66,0.00013698,2]
[423309615,1780048251000,-508.46,0.00013698,2]
[423309611,1780048251000,-2133.77,0.00013698,2]
[423309613,1780048251000,-7508.39,0.00013698,2]
[423309609,1780048251000,-1562.73,0.00013698,2]
[423309622,1780048251000,-168.8384639,0.00013705,11]
[423309605,1780048251000,-604.29,0.00013698,2]
[423309612,1780048251000,-519.76,0.00013698,2]
[423309620,1780048251000,-176.729713,0.00013699,2]
[423309627,1780048251000,-1126.9,0.00013972,2]
[423309617,1780048251000,-954.48,0.00013698,2]
[423309621,1780048251000,-2000.0,0.00013699,7]
[423309623,1780048251000,-151.0,0.000138,2]
[423309625,1780048251000,-727.96,0.00013972,2]
[423309630,1780048251000,-588.07,0.00013972,2]
[423309626,1780048251000,-663.35,0.00013972,2]
[423309632,1780048251000,-1101.92,0.00013972,2]
[423309629,1780048251000,-623.91,0.00013972,2]
[423309624,1780048251000,-152.69,0.000139,2]
[423309631,1780048251000,-657.44,0.00013972,2]
[423309603,1780048251000,-588.7228542,0.00013698,2]
[423309616,1780048251000,-831.06,0.00013698,2]
[423309607,1780048251000,-500.0,0.00013698,2]
[423309590,1780048251000,-326.1200344,0.0001366,2]
[423309608,1780048251000,-2356.06,0.00013698,2]
[423309580,1780048251000,-7508.39,0.00013424,2]
[423309581,1780048251000,-1784.66,0.00013424,2]
[423309628,1780048251000,-583.42922084,0.00013972,2]
[423309584,1780048251000,-954.48,0.00013424,2]
[423309585,1780048251000,-506.81,0.00013424,2]
[423309583,1780048251000,-831.06,0.00013424,2]
[423309589,1780048251000,-327.7623847,0.0001366,2]
[423309588,1780048251000,-499.99999999,0.00013514,2]
[423309586,1780048251000,-1000.0,0.000135,2]
[423309587,1780048251000,-492.0,0.000135,2]
[423309593,1780048251000,-307.08231,0.00013662,2]
[423309610,1780048251000,-1764.73,0.00013698,2]
[423309594,1780048251000,-456.7009663,0.00013662,2]
[423309595,1780048251000,-500.0,0.00013698,2]
[423309592,1780048251000,-326.1200344,0.00013662,2]
[423309591,1780048251000,-455.7393379,0.0001366,2]
[423309597,1780048251000,-663.35,0.00013698,2]
[423309596,1780048251000,-727.96,0.00013698,2]
[423309600,1780048251000,-623.91,0.00013698,2]
[423309599,1780048251000,-500.0,0.00013698,2]
[423309601,1780048251000,-588.07,0.00013698,2]
[423309602,1780048251000,-657.44,0.00013698,2]
[423309604,1780048251000,-1101.92,0.00013698,2]
[423309606,1780048251000,-515.67,0.00013698,2]
[423309598,1780048251000,-1126.9,0.00013698,2]
[423309634,1780048251000,-515.67,0.00013972,2]
[423309582,1780048251000,-508.46,0.00013424,2]
[423309635,1780048251000,-484.42585115,0.00013972,2]
[423309667,1780048251000,-506.81,0.00014246,2]
[423309666,1780048251000,-954.48,0.00014246,2]
[423309665,1780048251000,-831.06,0.00014246,2]
[423309669,1780048251000,-728.1810741,0.0001452,2]
[423309668,1780048251000,-168.8384639,0.0001426,13]
[423309672,1780048251000,-624.12526047,0.0001452,2]
[423309671,1780048251000,-1127.13615297,0.0001452,2]
[423309678,1780048251000,-2356.09775447,0.0001452,2]
[423309675,1780048251000,-1102.08640777,0.0001452,2]
[423309676,1780048251000,-604.3,0.0001452,2]
[423309679,1780048251000,-1562.78,0.0001452,2]
[423309663,1780048251000,-1784.66,0.00014246,2]
[423309677,1780048251000,-515.69361506,0.0001452,2]
[423309674,1780048251000,-657.51,0.0001452,2]
[423309673,1780048251000,-588.2,0.0001452,2]
[423309683,1780048251000,-7508.44373986,0.0001452,2]
[423309680,1780048251000,-1764.87,0.0001452,2]
[423309682,1780048251000,-519.97533023,0.0001452,2]
[423309681,1780048251000,-2133.98,0.0001452,2]
[423309686,1780048251000,-831.09153598,0.0001452,2]
[423309685,1780048251000,-508.52,0.0001452,2]
[423309687,1780048251000,-954.49029711,0.0001452,2]
[423309684,1780048251000,-1784.86,0.0001452,2]
[423309638,1780048251000,-1764.73,0.00013972,2]
[423309670,1780048251000,-663.35,0.0001452,2]
[423309664,1780048251000,-508.46,0.00014246,2]
[423309688,1780048251000,-506.8645122,0.0001452,2]
[423309662,1780048251000,-7508.39,0.00014246,2]
[423309661,1780048251000,-519.76,0.00014246,2]
[423309643,1780048251000,-508.46,0.00013972,2]
[423309642,1780048251000,-1784.66,0.00013972,2]
[423309640,1780048251000,-519.76,0.00013972,2]
[423309641,1780048251000,-7508.39,0.00013972,2]
[423309637,1780048251000,-1562.73,0.00013972,2]
[423309639,1780048251000,-2133.77,0.00013972,2]
[423309633,1780048251000,-604.29,0.00013972,2]
[423309644,1780048251000,-831.06,0.00013972,2]
[423309645,1780048251000,-954.48,0.00013972,2]
[423309656,1780048251000,-515.67,0.00014246,2]
[423309648,1780048251000,-727.96,0.00014246,2]
[423309636,1780048251000,-2356.06,0.00013972,2]
[423309647,1780048251000,-151.0,0.000142,2]
[423309649,1780048251000,-663.35,0.00014246,2]
[423309659,1780048251000,-1764.73,0.00014246,2]
[423309658,1780048251000,-1562.73,0.00014246,2]
[423309654,1780048251000,-1101.92,0.00014246,2]
[423309655,1780048251000,-604.29,0.00014246,2]
[423309657,1780048251000,-2356.06,0.00014246,2]
[423309650,1780048251000,-1126.9,0.00014246,2]
[423309652,1780048251000,-588.07,0.00014246,2]
[423309653,1780048251000,-657.44,0.00014246,2]
[423309646,1780048251000,-506.81,0.00013972,2]
[423309651,1780048251000,-623.91,0.00014246,2]
[423309660,1780048251000,-2133.77,0.00014246,2]
[423309712,1780048252000,-168.8384639,0.00015925,18]
[423309705,1780048252000,-443.0,0.00015455,2]
[423309720,1780048252000,-156.27,0.00016385,2]
[423309715,1780048252000,-1000.0,0.00016335,2]
[423309717,1780048252000,-156.26,0.00016381,2]
[423309716,1780048252000,-156.26,0.00016381,2]
[423309727,1780048252000,-168.8384639,0.0001648,20]
[423309718,1780048252000,-156.26,0.00016383,2]
[423309722,1780048252000,-156.26,0.00016385,2]
[423309725,1780048252000,-1005.22216161,0.00016438,2]
[423309721,1780048252000,-156.26,0.00016385,2]
[423309723,1780048252000,-6022.97612853,0.000164,2]
[423309726,1780048252000,-7324.1175217,0.00016469,2]
[423309724,1780048252000,-200.0,0.00016438,2]
[423309728,1780048252000,-568151.89733455,0.00016489,2]
[423309730,1780048252000,-74025.26646344,0.00016489,2]
[423309732,1780048252000,-113416.31319343,0.00016489,2]
[423309710,1780048252000,-2000.0,0.00015799,7]
[423309734,1780048252000,-162.0,0.000165,15]
[423309719,1780048252000,-156.26,0.00016383,2]
[423309713,1780048252000,-267.19,0.000161,2]
[423309696,1780048252000,-175.0770408,0.00015,2]
[423309709,1780048252000,-1058.0,0.00015798,4]
[423309740,1780048252000,-583.59875289,0.00016952,2]
[423309691,1780048252000,-168.8384639,0.00014815,14]
[423309689,1780048252000,-151.0,0.000146,2]
[423309690,1780048252000,-152.69,0.000148,2]
[423309692,1780048252000,-200.69415494,0.00014823,2]
[423309693,1780048252000,-1000.0,0.0001485,2]
[423309703,1780048252000,-1414.0,0.00015455,2]
[423309694,1780048252000,-791.0,0.0001485,2]
[423309695,1780048252000,-528.31044999,0.00014952,2]
[423309711,1780048252000,-152.69,0.000158,2]
[423309699,1780048252000,-168.8384639,0.0001537,16]
[423309700,1780048252000,-152.0,0.00015373,30]
[423309698,1780048252000,-190.682985,0.00015068,2]
[423309702,1780048252000,-152.0,0.00015394,30]
[423309701,1780048252000,-152.0,0.00015373,30]
[423309707,1780048252000,-898.1227293,0.00015565,2]
[423309708,1780048252000,-4574.9242997,0.00015565,2]
[423309704,1780048252000,-1835.0,0.00015455,2]
[423309706,1780048252000,-185.0,0.00015455,2]
[423309714,1780048252000,-1000.0,0.00016335,2]
[423309697,1780048252000,-113931.69483073,0.00015,2]
[423309736,1780048252000,-5000.0,0.0001654,2]
[423309752,1780048252000,-579.0,0.00017968,2]
[423309737,1780048252000,-5000.0,0.0001654,2]
[423309762,1780048252000,-185.0,0.00018455,2]
[423309764,1780048252000,-152.69,0.000186,2]
[423309766,1780048252000,-5002.7876236,0.00018666,2]
[423309765,1780048252000,-600.01,0.0001863,2]
[423309775,1780048252000,-64789.8889756,0.00019,2]
[423309767,1780048252000,-5000.0,0.00018666,2]
[423309741,1780048252000,-168.8384639,0.00017035,21]
[423309774,1780048252000,-2204.12916964,0.00019,2]
[423309769,1780048252000,-160.0,0.00018744,7]
[423309758,1780048252000,-160.0,0.0001839,6]
[423309772,1780048252000,-600.01,0.00018904,2]
[423309770,1780048252000,-2661.04692883,0.000188,2]
[423309771,1780048252000,-13144.30724527,0.00018803,3]
[423309776,1780048252000,-791.89858621,0.00019,2]
[423309779,1780048252000,-152.0,8.106e-05,2]
[423309778,1780048252000,-1330.26478548,0.00019,2]
[423309777,1780048252000,-438.87021569,0.00019,2]
[423309781,1780048252000,-2306.34448557,8.951e-05,2]
[423309780,1780048252000,-1749.89879306,8.951e-05,2]
[423309782,1780048252000,-393.08327251,8.951e-05,2]
[423309773,1780048252000,-638.8870558,0.00018952,2]
[423309755,1780048252000,-300.45,0.000181,2]
[423309768,1780048252000,-168.8384639,0.000187,27]
[423309759,1780048252000,-1414.0,0.00018455,2]
[423309735,1780048252000,-5000.0,0.0001654,2]
[423309763,1780048252000,-1058.0,0.00018523,4]
[423309731,1780048252000,-6610.17410858,0.00016489,2]
[423309738,1780048252000,-200.0,0.000166,10]
[423309742,1780048252000,-200.0,0.000171,2]
[423309748,1780048252000,-152.69,0.000177,2]
[423309746,1780048252000,-168.8384639,0.0001759,23]
[423309753,1780048252000,-276.0,0.0001802,2]
[423309745,1780048252000,-160.0,0.00017327,3]
[423309744,1780048252000,-1020.8035916,0.0001731,2]
[423309739,1780048252000,-152.69,0.000167,2]
[423309751,1780048252000,-1000.0,0.00017968,2]
[423309743,1780048252000,-200.3982684,0.0001731,2]
[423309757,1780048252000,-1634.2315155,0.00018316,2]
[423309761,1780048252000,-443.0,0.00018455,2]
[423309756,1780048252000,-168.8384639,0.00018145,25]
[423309760,1780048252000,-1835.0,0.00018455,2]
[423309747,1780048252000,-160.0,0.00017681,4]
[423309749,1780048252000,-2000.0,0.000179,7]
[423309750,1780048252000,-1000.0,0.00017968,2]
[423309754,1780048252000,-160.0,0.00018035,5]
[423309792,1780048350000,829.7489768,0.00020189,120]
[423309803,1780048573000,157.05908601,0.00020222,120]
[423309804,1780048710000,523.0,0.0002019,120]
[423309808,1780048780000,154.40090464,0.0002019,120]
[423309809,1780048809000,421.15,5e-05,2]
[423309860,1780049432000,-500.0,7.799e-05,2]
[423309857,1780049432000,-500.0,7.799e-05,2]